Cogmind - Beta 10.2 @@@ ROGUE MODE // 2021.05.10 @ 13:14:21 Player: Cookedpoo Result: Self-destructed Performance ------------- Evolutions (2) 1000 Regions Visited (5) 1000 Robots Destroyed (0) 0 Value Destroyed (0) 0 Prototype IDs (23) 460 Alien Tech Used (0) 0 Bonus (570) 570 TOTAL SCORE: 3030 Bonus ------- Pacifist 270 Aligned with FarCom 300 Cogmind --------- Core Integrity 550/550 Matter 280/300 Energy 100/100 System Corruption 0% Temperature Cool (0) Movement Flying (40) Location -8/Materials Parts ------- > --- POWER (1) -------- (None) > --- PROPULSION (2) --- Xenon Bombardment Thruster > --- UTILITY (6) ------ Small Storage Unit 0b10 Alert Chip > --- WEAPON (2) ------- Scythe > --- INVENTORY (6) ---- Light Ion Engine Nuclear Core Reinforced Deuterium Engine Light Fission Core High-capacity Battery (400) Improved Trap Extractor Peak State ------------ > --- POWER ------------ Light Ion Engine > --- PROPULSION ------- Flight Unit Xenon Bombardment Thruster > --- UTILITY ---------- Small Storage Unit 0b10 Alert Chip > --- WEAPON ----------- Remote Datajack > --- INVENTORY -------- Nuclear Core Reinforced Deuterium Engine Light Fission Core High-capacity Battery [Rating: 18] Favorites ----------- Power Light Ion Engine Engine Light Ion Engine Propulsion Flight Unit Flight Unit Flight Unit Utility 0b10 Alert Chip Storage Small Storage Unit Processor 0b10 Alert Chip Weapon Remote Datajack Special Weapon Remote Datajack Slashing Weapon Scythe Build | -11 -10 -10 -10 -9 -8 ------- Run | Scr Mat Min Exi Min Mat Slots Evolved 4 | . . . . . 4 Power . | . . . . . . Propulsion . | . . . . . . Utility 4 | . . . . . 4 Weapon . | . . . . . . Parts Attached 8 | 1 . 1 2 3 1 Power 2 | 1 . . . 1 . Engine 2 | 1 . . . 1 . Core . | . . . . . . Reactor . | . . . . . . Propulsion 2 | . . 1 . 1 . Treads . | . . . . . . Leg . | . . . . . . Wheel . | . . . . . . Hover . | . . . . . . Flight 2 | . . 1 . 1 . Utility 2 | . . . 2 . . Device . | . . . . . . Storage 1 | . . . 1 . . Processor 1 | . . . 1 . . Hackware . | . . . . . . Protection . | . . . . . . Artifact . | . . . . . . Weapon 2 | . . . . 1 1 Energy Gun . | . . . . . . Energy Cannon . | . . . . . . Ballistic Gun . | . . . . . . Ballistic Cannon . | . . . . . . Launcher . | . . . . . . Special Weapon 1 | . . . . 1 . Impact Weapon . | . . . . . . Slashing Weapon 1 | . . . . . 1 Piercing Weapon . | . . . . . . Special Melee Weapon . | . . . . . . Unidentified Prototypes . | . . . . . . Parts Lost 1 | . . . . . 1 Power . | . . . . . . Propulsion 1 | . . . . . 1 Utility . | . . . . . . Weapon . | . . . . . . Highest Loss Streak 1 | . . . . . 1 Average Slot Usage (%) 44 | . 14 24 36 68 51 Engine 10 | . 14 14 10 8 7 Flight 15 | . . 10 14 23 16 Storage 6 | . . . 3 14 9 Processor 8 | . . . 8 14 9 Special Weapon 2 | . . . . 8 1 Slashing Weapon 1 | . . . . . 7 Naked Turns . | . . . . . . Heaviest Build 10 | 3 3 3 4 10 10 Greatest Support 11 | 3 3 4 4 11 11 Greatest Overweight (x) 1 | . . . . 1 . Average Overweight (x) . | . . . . . . Largest Inventory Capacity 6 | 4 4 4 6 6 6 Average Capacity 5 | 4 4 4 4 6 6 Most Carried 6 | . . . 5 6 6 Average Carried 3 | . . . 3 5 5 Final Capacity 6 | 4 4 4 6 6 6 Final Carried 6 | . . . 5 5 6 Class Distribution -------------------- 100% | Mutant Dominant Class ---------------- Mutant | -10/Materials Mutant | -10/Mines Mutant | -10/Exiles Mutant | -9/Mines Mutant | -8/Materials Resources | -11 -10 -10 -10 -9 -8 ----------- Run | Scr Mat Min Exi Min Mat Matter Collected 255 | 210 . 10 . 35 . Remotely . | . . . . . . Salvage Created . | . . . . . . Parts . | . . . . . . Haulers Intercepted . | . . . . . . Recyclers Shooed . | . . . . . . Parts Field Recycled . | . . . . . . Retrieved Matter . | . . . . . . Parts Self-Destructed . | . . . . . . Prevented . | . . . . . . Kills | -11 -10 -10 -10 -9 -8 ------- Run | Scr Mat Min Exi Min Mat Combat Hostiles Destroyed . | . . . . . . Classes Destroyed . | . . . . . . Best Kill Streak . | . . . . . . Combat Bots Only . | . . . . . . Max Kills in Single Turn . | . . . . . . Gunslinging . | . . . . . . Exploded . | . . . . . . Melee . | . . . . . . Uniques/NPCs Destroyed . | . . . . . . Combat | -11 -10 -10 -10 -9 -8 -------- Run | Scr Mat Min Exi Min Mat Damage Taken 53 | . . 30 . . 23 Core 30 | . . 30 . . . Absorbed by Shields . | . . . . . . Core Remaining (%) 94 | 100 . . . 88 . Volleys Fired . | . . . . . . Largest . | . . . . . . Hottest . | . . . . . . Shots Fired . | . . . . . . Gun . | . . . . . . Cannon . | . . . . . . Launcher . | . . . . . . Special . | . . . . . . Kinetic . | . . . . . . Thermal . | . . . . . . Explosive . | . . . . . . Electromagnetic . | . . . . . . Robot Hit Streak . | . . . . . . Robot Miss Streak . | . . . . . . Penetration Max . | . . . . . . Secondary Targets . | . . . . . . Shots Hit Robots . | . . . . . . Core Hits . | . . . . . . Critical Hits . | . . . . . . Critical Kills . | . . . . . . Critical Parts Destroyed . | . . . . . . Melee Attacks 2 | . . . . . 2 Impact . | . . . . . . Slashing 2 | . . . . . 2 Piercing . | . . . . . . Sneak Attacks . | . . . . . . Combat Hostiles . | . . . . . . Follow-up Attacks . | . . . . . . Damage Inflicted . | . . . . . . Guns . | . . . . . . Cannons . | . . . . . . Explosions . | . . . . . . Melee . | . . . . . . Ramming . | . . . . . . Kinetic . | . . . . . . Thermal . | . . . . . . Explosive . | . . . . . . Electromagnetic . | . . . . . . Impact . | . . . . . . Slashing . | . . . . . . Piercing . | . . . . . . Highest Corruption . | . . . . . . Average Corruption . | . . . . . . Corruption Purged . | . . . . . . Overload Shots . | . . . . . . Overflow Damage . | . . . . . . Projectiles . | . . . . . . Explosions . | . . . . . . Melee . | . . . . . . Knockbacks . | . . . . . . Impact . | . . . . . . Kinetic . | . . . . . . Secondary . | . . . . . . Self-Inflicted Damage . | . . . . . . Shots . | . . . . . . Rammed . | . . . . . . Targets Rammed . | . . . . . . Kicked . | . . . . . . Crushed . | . . . . . . Highest Temperature . | . . . . . . Average Temperature . | . . . . . . Received Heat Transfer . | . . . . . . Siege Activations . | . . . . . . Robots Corrupted . | . . . . . . Combat Hostiles . | . . . . . . Parts Fried . | . . . . . . Impact Corruptions . | . . . . . . Robots Melted . | . . . . . . Combat Hostiles . | . . . . . . Parts Melted . | . . . . . . Heat Transferred . | . . . . . . Parts Sabotaged . | . . . . . . Parts Stolen . | . . . . . . Parts Stripped . | . . . . . . Power Chain Reactions . | . . . . . . Missiles Intercepted . | . . . . . . Alert | -11 -10 -10 -10 -9 -8 ------- Run | Scr Mat Min Exi Min Mat Peak Influence 130 | . . 30 . . 130 Initial . | . . . . . . Average 22 | . . 17 . . 65 Maximum Alert Level . | . . . . . . Low Security (%) 100 | 100 100 100 . 100 100 Level 1 . | . . . . . . Level 2 . | . . . . . . Level 3 . | . . . . . . Level 4 . | . . . . . . Level 5 . | . . . . . . High Security . | . . . . . . Max Security . | . . . . . . Squads Dispatched 3 | . 1 . . . 2 Investigation 1 | . 1 . . . . Extermination . | . . . . . . Reinforcement 2 | . . . . . 2 Assault . | . . . . . . Garrison . | . . . . . . Intercept . | . . . . . . Construction Impeded . | . . . . . . Haulers Reinforced . | . . . . . . Stealth | -11 -10 -10 -10 -9 -8 --------- Run | Scr Mat Min Exi Min Mat Distress Signals 3 | . . . . . 3 Communications Jammed . | . . . . . . Distress Signals . | . . . . . . Times Spotted 15 | . . 4 . . 11 Peak Tracking Total 6 | . . 3 . . 6 Tactical Retreats 3 | . . 1 . . 2 Traps | -11 -10 -10 -10 -9 -8 ------- Run | Scr Mat Min Exi Min Mat Traps Triggered 1 | . 1 . . . . Indirectly . | . . . . . . Trap Hack Attempts . | . . . . . . Triggered . | . . . . . . Disarmed . | . . . . . . Reprogrammed . | . . . . . . Reused . | . . . . . . Traps Extracted . | . . . . . . Installed . | . . . . . . Triggered . | . . . . . . Machines | -11 -10 -10 -10 -9 -8 ---------- Run | Scr Mat Min Exi Min Mat Machines Disabled . | . . . . . . Max in Single Turn . | . . . . . . Machines Sabotaged . | . . . . . . Garrisons Compromised . | . . . . . . Overloaded Fab Kills . | . . . . . . Fab Network Shutdowns . | . . . . . . Hacking | -11 -10 -10 -10 -9 -8 --------- Run | Scr Mat Min Exi Min Mat Machines Accessed 7 | . 2 . 2 1 2 Terminals 2 | . 1 . . . 1 Fabricators . | . . . . . . Repair Stations . | . . . . . . Recycling Units 1 | . 1 . . . . Scanalyzers 1 | . . . . . 1 Garrison Access . | . . . . . . Total Hacks 18 | . 6 . 2 1 9 Successful 9 | . 3 . 2 1 3 Failed 9 | . 3 . . . 6 Catastrophic . | . . . . . . Database Lockouts . | . . . . . . Manual 13 | . 5 . 1 . 7 Terminals 12 | . 5 . . . 7 Fabricators . | . . . . . . Repair Stations . | . . . . . . Recycling Units 1 | . 1 . . . . Scanalyzers 2 | . . . . . 2 Garrison Access . | . . . . . . Terminal Hacks 3 | . . . 2 1 . Record 1 | . . . 1 . . Open Door 1 | . . . . 1 . EX-Prototype ID Bank 1 | . . . 1 . . Fabricator Hacks . | . . . . . . Repair Station Hacks . | . . . . . . Recycling Unit Hacks 1 | . 1 . . . . Retrieve Components 1 | . 1 . . . . Scanalyzer 1 | . . . . . 1 Insert Component 1 | . . . . . 1 Garrison Access Hacks . | . . . . . . Unauthorized Hacks 4 | . 2 . . . 2 Terminals 4 | . 2 . . . 2 Track 1 | . 1 . . . . Botnet 2 | . 1 . . . 1 Operators 1 | . . . . . 1 Fabricators . | . . . . . . Repair Stations . | . . . . . . Recycling Units . | . . . . . . Scanalyzers . | . . . . . . Garrison Access . | . . . . . . Data Cores Recovered . | . . . . . . Used . | . . . . . . Hacking Detections 3 | . 1 . . . 2 Full Trace Events . | . . . . . . Feedback Events . | . . . . . . Feedback Blocked . | . . . . . . Robot Schematics Acquired . | . . . . . . Robots Built . | . . . . . . Matter . | . . . . . . Time . | . . . . . . Total Robot Build Rating . | . . . . . . Part Schematics Acquired . | . . . . . . Parts Built . | . . . . . . Matter . | . . . . . . Time . | . . . . . . Total Part Build Rating . | . . . . . . Parts Repaired . | . . . . . . Time . | . . . . . . Parts Recycled . | . . . . . . Recycled Matter . | . . . . . . Retrieved Matter . | . . . . . . Retrieved Components 3 | . 3 . . . . Parts Scanalyzed 1 | . . . . . 1 Part Schematics Acquired . | . . . . . . Parts Damaged . | . . . . . . Bothacking | -11 -10 -10 -10 -9 -8 ------------ Run | Scr Mat Min Exi Min Mat Used RIF Installer . | . . . . . . Robots Hacked . | . . . . . . Non-combat . | . . . . . . Combat . | . . . . . . Robot Hacks Applied . | . . . . . . Relay Couplers Released . | . . . . . . Robots Rewired . | . . . . . . Allies Hacked . | . . . . . . Hacks Repelled . | . . . . . . Allies | -11 -10 -10 -10 -9 -8 -------- Run | Scr Mat Min Exi Min Mat Total Allies . | . . . . . . Largest Group . | . . . . . . Highest-Rated Group . | . . . . . . Highest-Rated Ally . | . . . . . . Total Orders . | . . . . . . Ally Attacks . | . . . . . . Total Damage . | . . . . . . Kills . | . . . . . . Allies Corrupted . | . . . . . . Allies Melted . | . . . . . . Intel | -11 -10 -10 -10 -9 -8 ------- Run | Scr Mat Min Exi Min Mat Robot Analysis Total . | . . . . . . Derelict Logs Recovered 2 | . . 1 . 1 . Drone Launches . | . . . . . . Drone Recoveries . | . . . . . . Exploration | -11 -10 -10 -10 -9 -8 ------------- Run | Scr Mat Min Exi Min Mat Turns Passed 540 | 18 52 77 126 147 120 Spaces Moved 1215 | 32 103 180 290 327 283 Core 177 | 32 103 38 . 4 . Treads . | . . . . . . Legs . | . . . . . . Wheels . | . . . . . . Hover . | . . . . . . Flight 1038 | . . 142 290 323 283 Fastest Speed 37 | 50 50 40 40 37 37 Average Speed 40 | 50 50 42 40 38 37 Slowest Speed 100 | 50 50 50 40 100 40 Overloaded Moves . | . . . . . . Propulsion Burnouts . | . . . . . . Robots Hopped 22 | . . . . 21 1 Cave-ins Triggered . | . . . . . . Exploration Rate (%) 36 | 3 24 52 71 54 15 Regions Visited 5 Branch Regions 3 Pre-discovered Areas 3 | . . 1 1 1 . Known Exits Taken . | . . . . . . Unknown Exits Taken 5 | 1 1 1 1 1 . Scrap Searched 3 | . . 1 . 2 . Spaces Dug . | . . . . . . Terrain Destroyed . | . . . . . . Melee . | . . . . . . Projectile . | . . . . . . AOE . | . . . . . . Terrain Rammed . | . . . . . . Walls Destroyed . | . . . . . . Machines Disabled . | . . . . . . Actions | -11 -10 -10 -10 -9 -8 --------- Run | Scr Mat Min Exi Min Mat Total 1232 | 32 102 180 299 325 294 Wait 19 | . . . . 13 6 Move 1170 | 31 102 179 289 288 281 Hop 18 | . . . . 17 1 Pick Up 9 | . . . 6 3 . Fast Attach 6 | 1 . 1 2 1 1 Attach 2 | . . . . 2 . Detach 2 | . . . . . 2 Swap . | . . . . . . Drop 4 | . . . 2 1 1 Fire . | . . . . . . Melee 2 | . . . . . 2 Ram . | . . . . . . Kick . | . . . . . . Crush . | . . . . . . Escape Stasis . | . . . . . . Rewire . | . . . . . . Trap . | . . . . . . Miscellaneous . | . . . . . . Route ------- -11/Scrapyard -10/Materials -10/Mines (discovered 2 exits: [*Mat] / *Exi) -10/Exiles -9/Mines -8/Materials History --------- Turn | Location | Event 6 | -11/Scrapyard | Discovered new exit (range 16) 19 | -11/Scrapyard | Entered Materials 68 | -10/Materials | Discovered new exit (range 6) 71 | -10/Materials | Entered Mines 111 | -10/Mines | Learned location of Zion (-7) 126 | -10/Mines | Discovered new exit (range 13) 146 | -10/Mines | Deemed a non-threat by the Exiles lab entrance 147 | -10/Mines | Discovered new exit (range 5) 148 | -10/Mines | Entered Exiles 162 | -10/Exiles | Met 8R-AWN 168 | -10/Exiles | Met EX-HEX 180 | -10/Exiles | Met EX-BIN 184 | -10/Exiles | Aligned with FarCom system 184 | -10/Exiles | Given EX-Vault access code 194 | -10/Exiles | Opened EX-Vault 196 | -10/Exiles | Found 0b10 Alert Chip 206 | -10/Exiles | Warned to stay clear of 0b10 Research branches 218 | -10/Exiles | Met EX-DEC 270 | -10/Exiles | Discovered new exit (range 12) 274 | -10/Exiles | Left Exiles lab with 0b10 Alert Chip 274 | -10/Exiles | Entered Mines 304 | -9/Mines | Build established: Mutant 310 | -9/Mines | Discovered new exit (range 11) 317 | -9/Mines | Met a Derelict who couldn't figure out how to use a Trap Extractor 390 | -9/Mines | Assembled infested the area 395 | -9/Mines | Assisted by a Guerilla fighting off Assembled 421 | -9/Mines | Entered Materials 421 | -8/Materials | Evolved 4 slots: Utility x4 541 | -8/Materials | Self-destructed Last Messages --------------- Testing... Operator tracking enabled and active. 00445_ Dropped Remote Datajack. 00446_ Acquired Scythe. 00457_ Connecting with Scanalyzer... >>Insert(Rigged Rnf. Deuterium Engine) Scanning Rigged Rnf. Deuterium Engine... Ready to analyze. 00464_ O-16 Technician sends out distress signal. 00464_ O-16 Technician: "IFF HANDSHAKE FAILED. SECURING TERMINAL." 00466_ ALERT: Hostiles spotted, dispatching reinforcements to Terminal M007. 00488_ O-16 Technician: "IFF HANDSHAKE FAILED. SECURING TERMINAL." 00489_ K-01 Serf collects debris. 00491_ O-16 Technician uses terminal to summon reinforcements. 00491_ ALERT: Hostiles spotted, dispatching reinforcements to Terminal M008. 00491_ O-16 Technician locks terminal. 00493_ K-01 Serf collects debris. 00526_ Flight Unit destroyed. Map ----- +----------------------------------------------------+ | ????????# #???????????# #??????????????????????? | | ????????# ???????????# #??????????????????????? | | ????????# #???????????# #??????????????????????? | | ????????# #???????????# #??????????????????????? | | ###?????# #???????????# #??????????????????????? | | #?????# #???????????# #??????????????????????? | | #?????# #???????????# #??????????????????????? | | ] #?????# #???????##### ####???????????????????? | | #?????# ######### #???????????????????? | | ####### # ## #???????????????????? | | / + ## #???????????????????? | | ######### ## #### #???????????????????? | | #???????# ## #??# #?????##????????????? | | !#???????# ## #??# #???? #???????????? | | ###???????# ## ##?#h #??? #???????????? | | ???###########+### #?# #?? #???????????? | | ???# #?# #?? ????????????? | | ???# #?# #? ??????????????? | | ???# #?# #? ???????????????? | | ???##### ####### #?# # ??????o?????????? | | ???????# #?????#######?# # ?????????????????? | | ???????# #?????????????# + ??????????????????? | | ???????# #?????????????# #???????????????????? | | ???????# #?????????????# #???????????????????? | | ???????# #????????????## ##??????????????????? | | ???????# #??????#######@ #??????????????????? | | ???######+######??# # #??????????????????? | | ???# #### """ s T #??????????????????? | | ???# + # """ # #??????????????????? | | ???# ! """ ]]] #o # """ # #??????????????????? | | ???# """ ]] # # """ ###+###??????????????????? | | ???# """ ]] # # s% #????????????????????????? | | ???# # / """ #????????????????????????? | | ???# / # #%""" #????????????????????????? | | ???###+######### # "S #????????????????????????? | | ??? ######## # """ #????????????????????????? | | ?? # "" #????????????????????????? | | ?? Y + #????????????????????????? | | ?? ####### ######+##????????????????????????? | | ???#????????? ?????# #?????????????????????????? | | ???????????? ?????# #?????????????????????????? | | ???????????#####?????# #?????????????????????????? | | ?????????????????????# #?????????????????????????? | | ????????????????????##+#######???????????????????? | | ????????????????????# ]#???????????????????? | | ????????????????????# """ #???????????????????? | | ????????????????????# """"" #??########/#???????? | | ????????????????????# """"" # o????? | | ????????????????????# """"" + ?????? | | ????????????????????# """ # ?????? | +----------------------------------------------------+ Best States ------------- Heat Dissipation 31 Energy Generation 10 Energy Capacity 125 Matter Stores 300 Matter Capacity 300 Sight Range 16 Terrain Scan Density 10 Evasion (%) 62 Item Schematics ----------------- None Robot Schematics ------------------ None Fabricated ------------ Nothing Alien Tech Used ----------------- None Achievements -------------- None Challenges ------------ None Game ------ Seed ArmageddonFactoryFirepult Manual? 0 Play Time 00:12:31 Cumulative 125.8 hours Start 2021.05.10 @ 13:03:45 End 2021.05.10 @ 13:14:21 Sessions 1 Manual Loads 0 Difficulty Rogue Special Mode None Game No. 109 Rogue 109 Adventurer 0 Explorer 0 Win Type - Total 3 Types 3/0/0/0/0/0/0/0/0 Lore% 61 Gallery% 64 Achievement% 51 Wizard Run 0 Options --------- ASCII 1 Keyboard 1 Movement Arrows Keybinds 0 Fullscreen 2 Font 18/TerminusBold Map View 76x50 Tactical HUD 1 Map Filters NONE Filters NONE Steam 1 RUN: 8ffef76f-880a-4e8d-b60d-be896f586482